{"text_format":"1","workbook":"xlsx","n_sheets":3,"sheets":["Cuaderno de calificaciones","Resumen del alumno","Criterios de calificación"],"not_rendered":{"charts":1,"images":1,"macros":1,"external_links":0,"defined_names":11,"comments":0,"pivot_tables":0},"unopened":[],"bounds":{"document_bytes":16777216,"sheet_cells":100000,"rows_first":2000,"rows_last":500,"rows_between":2000,"halvings":0,"cell_chars":16384,"cell_head_chars":4096},"cells_cut":0,"cells_raw":0,"read":"whole","date_system":"1900"}

{"sheet":"Cuaderno de calificaciones","index":0,"n_rows":8,"n_cols":9,"rows_kept":8,"cut":false,"hidden":false,"merged":[]}
[null,"Nombre de la asignatura"]
[null,"Nombre del profesor",null,null,null,"Fecha de la asignación ","2011-01-18","2011-01-25","2011-02-01"]
[null,null,null,null,"Puntos posibles totales ",{"$f":"SUM(Puntostotalesdeasignación[#Data])","v":90},20,20,50]
[null,"Nombre del alumno","Rendimiento","Calificación","%","Puntos conseguidos totales","Trabajo de redacción de clase 1","Trabajo de redacción de clase 2","Trabajo narrativo provisional"]
[null,"Alumno 1",{"$f":"Datosdelalumno[[#This Row],[Puntos conseguidos totales]]","v":90},{"$f":"IFERROR(VLOOKUP(Datosdelalumno[[#This Row],[%]],Tabladecalificaciones[],2,TRUE),\"\")","v":"A+"},{"$f":"IFERROR(Datosdelalumno[[#This Row],[Puntos conseguidos totales]]/Puntostotales,\"\")","v":1},{"$f":"IFERROR(SUM(Datosdelalumno[[#This Row],[Trabajo de redacción de clase 1]]:OFFSET(F5,,COUNTA(Puntostotalesdeasignación[]))),\"\")","v":90},20,20,50]
[null,"Alumno 2",{"$f":"Datosdelalumno[[#This Row],[Puntos conseguidos totales]]","v":60},{"$f":"IFERROR(VLOOKUP(Datosdelalumno[[#This Row],[%]],Tabladecalificaciones[],2,TRUE),\"\")","v":"D"},{"$f":"IFERROR(Datosdelalumno[[#This Row],[Puntos conseguidos totales]]/Puntostotales,\"\")","v":0.66666666666666663},{"$f":"IFERROR(SUM(Datosdelalumno[[#This Row],[Trabajo de redacción de clase 1]]:OFFSET(F6,,COUNTA(Puntostotalesdeasignación[]))),\"\")","v":60},10,10,40]
[null,"Alumno 3",{"$f":"Datosdelalumno[[#This Row],[Puntos conseguidos totales]]","v":75},{"$f":"IFERROR(VLOOKUP(Datosdelalumno[[#This Row],[%]],Tabladecalificaciones[],2,TRUE),\"\")","v":"B"},{"$f":"IFERROR(Datosdelalumno[[#This Row],[Puntos conseguidos totales]]/Puntostotales,\"\")","v":0.83333333333333337},{"$f":"IFERROR(SUM(Datosdelalumno[[#This Row],[Trabajo de redacción de clase 1]]:OFFSET(F7,,COUNTA(Puntostotalesdeasignación[]))),\"\")","v":75},20,15,40]
[null,"Puntuación/calificación media",null,{"$f":"IFERROR(VLOOKUP(Datosdelalumno[[#Totals],[%]],Tabladecalificaciones[],2,TRUE),\"\")","v":"B"},{"$f":"SUBTOTAL(101,Datosdelalumno[%])","v":0.83333333333333337},{"$f":"SUBTOTAL(101,Datosdelalumno[Puntos conseguidos totales])","v":75},{"$f":"SUBTOTAL(101,Datosdelalumno[Trabajo de redacción de clase 1])","v":16.666666666666668},{"$f":"SUBTOTAL(101,Datosdelalumno[Trabajo de redacción de clase 2])","v":15},{"$f":"SUBTOTAL(101,Datosdelalumno[Trabajo narrativo provisional])","v":43.333333333333336}]

{"sheet":"Resumen del alumno","index":1,"n_rows":51,"n_cols":8,"rows_kept":51,"cut":false,"hidden":false,"merged":[[7,1,7,3],[35,1,44,7],[0,0,0,4]]}
["Nombre del colegio"]
[null,{"$f":"Nombredelprofesor","v":"Nombre del profesor"}]
[null,{"$f":"Nombredelaasignatura","v":"Nombre de la asignatura"}]
[null,"Progreso hasta la fecha"]
[null,"2011-09-22"]
[]
[null,"Nombre del alumno:"]
[null,"Alumno 3"]
[]
[]
[null,"Puesto del alumno en la clasificación",null,"Calificación con letra","Porcentaje","Puntos del alumno","Puntos totales","Nota media"]
[null,null,{"$f":"IFERROR(_xlfn.RANK.EQ(VLOOKUP(B8,Datosdelalumno[],5,FALSE),Datosdelalumno[Puntos conseguidos totales]) & \" de las \"&COUNTA(Datosdelalumno[Nombre del alumno]) & \" Alumnos\",\"\")","v":"2 de las 3 Alumnos"},{"$f":"IFERROR(VLOOKUP(Nombredelalumno,Datosdelalumno[],3,FALSE),\"\")","v":"B"},{"$f":"IFERROR(VLOOKUP(Nombredelalumno,Datosdelalumno[],4,FALSE),\"\")","v":0.83333333333333337},{"$f":"IFERROR(VLOOKUP(Nombredelalumno,Datosdelalumno[],5,FALSE),\"\")","v":75},{"$f":"Puntostotales","v":90},{"$f":"IFERROR(VLOOKUP(E12,Tabladecalificaciones[],3,TRUE),\"\")","v":3}]
[]
[]
[]
[]
[]
[]
[]
[]
[]
[]
[]
[]
[]
[]
[]
[]
[]
[]
[]
[]
[]
[]
[null,"Comentarios del profesor"]
[]
[]
[]
[]
[]
[]
[]
[]
[]
[]
[]
[]
[null,"Firma del padre o tutor (en caso necesario)"]
[]
[]
[null,"X",null,null,null,"Fecha:"]

{"sheet":"Criterios de calificación","index":2,"n_rows":20,"n_cols":4,"rows_kept":20,"cut":false,"hidden":false,"merged":[[4,1,4,3],[2,1,2,4]]}
[null,"Calcular la calificación con letra"]
[]
[null,"Escriba los intervalos de porcentaje de cada calificación con letra en la tabla siguiente para adaptar la plantilla a sus criterios de calificación. "]
[]
[null,"Tabla de CALIFICACIONES Y NOTAS MEDIAS\n(Se utiliza para calcular las notas de los alumnos en la hoja Cuadernos de calificaciones)"]
[null,"Puntuación","Calificación con letra obtenida","Nota media"]
[null,0,"F",0]
[null,0.6,"D-",0.67]
[null,0.63,"D",1]
[null,0.67,"D+",1.33]
[null,0.7,"C-",1.67]
[null,0.73,"C",2]
[null,0.77,"C+",2.33]
[null,0.8,"B-",2.67]
[null,0.83,"B",3]
[null,0.87,"B+",3.33]
[null,0.9,"A-",3.67]
[null,0.93,"A",4]
[null,0.97,"A+",4]
[null,"La puntuación y la nota media se deben escribir en orden ascendente."]